bitfinex/quotes_ETHUSD_20250611
["timestamp","ask_amount","ask_price","bid_price","bid_amount"]
[1749646515487,0.1784,2796.8,2796.3,0.1784]
[1749646515646,4.85403499,2796.8,2796.2,0.3781]
[1749646515848,0.1784,2796.6,2796.2,0.3781]
[1749646516047,3.75425092,2796.6,2796.1,0.2184]
[1749646516282,1.4854035,2796.7,2796.1,0.2184]
[1749646516283,8.1959409,2796.5,2796.1,0.04]
[1749646516467,0.1784,2796.4,2796.1,0.04]
[1749646516673,4.62,2796.3,2796.1,0.04]
[1749646517374,3.57628209,2796.2,2796.1,0.04]
[1749646517574,4.62,2796.2,2796.1,0.04]
[1749646517888,19.47458209,2796.2,2796.1,0.04]
[1749646518399,20.85458209,2796.2,2796.1,0.04]
[1749646518603,20.16041361,2796.2,2796.1,0.04]
[1749646518809,23.7366957,2796.2,2796.1,0.04]
[1749646519164,13.7366957,2796.2,2796.1,0.04]
[1749646520070,5.0611408,2796.7,2796.1,0.04]
[1749646520071,7.76274157,2796.8,2796.1,0.04]
[1749646520284,1.72942713,2797.0,2796.1,0.04]
[1749646520582,6.0,2797.1,2796.2,0.3781]
[1749646520761,1.38,2797.1,2796.2,0.3781]
[1749646521158,1.38,2797.1,2796.1,0.04]
[1749646521159,0.1784,2797.0,2796.7,0.3781]
[1749646522156,1.38,2797.1,2796.7,0.3781]
[1749646522596,1.38,2797.1,2797.0,0.1784]
[1749646522967,0.1784,2797.5,2797.0,0.1784]
[1749646523495,0.1784,2797.5,2796.7,0.3781]
[1749646523496,0.29680895,2797.4,2796.7,0.3781]
[1749646523696,0.47520895,2797.4,2796.9,0.1784]
[1749646524163,0.29680895,2797.4,2796.7,0.3781]
[1749646524492,0.29680895,2797.4,2796.9,0.1784]
[1749646524493,0.1784,2797.4,2796.9,0.1784]
[1749646525259,3.75319231,2797.4,2796.9,0.1784]
[1749646525462,0.9111711,2797.4,2796.9,0.1784]
[1749646525670,4.48598695,2797.4,2796.9,0.1784]
[1749646526088,3.57494123,2797.3,2796.9,0.1784]
[1749646526394,4.48598695,2797.4,2796.9,0.1784]
[1749646526395,4.48596772,2797.4,2796.9,0.1784]
[1749646526599,0.9111711,2797.4,2796.9,0.1784]
[1749646527164,0.1784,2797.4,2796.9,0.1784]
[1749646528206,10.637,2797.7,2796.7,0.3781]
[1749646528408,4.7984,2797.6,2797.1,0.1784]
[1749646528901,4.7984,2797.6,2797.2,0.3788]
[1749646528902,4.62,2797.6,2797.2,0.3788]
[1749646529110,10.637,2797.7,2797.2,0.3788]
[1749646529417,1.38,2797.7,2797.5,0.1784]
[1749646529566,10.0,2797.6,2796.3,0.3788]
[1749646529764,3.57500357,2797.2,2796.3,0.3788]
[1749646529999,3.57519299,2797.1,2796.3,0.3788]
[1749646530180,0.1784,2797.0,2796.5,0.1784]
[1749646530364,5.89495,2797.5,2796.3,0.3788]
[1749646530365,1.5584,2797.2,2796.7,0.1784]
[1749646530564,5.1334045,2797.2,2796.7,0.1784]
[1749646530808,0.51334045,2797.1,2796.7,0.1784]
[1749646530979,1.5584,2797.2,2796.7,0.1784]
[1749646531381,1.38,2797.2,2796.7,0.1784]
[1749646531668,1.38,2797.2,2796.8,0.3788]
[1749646532417,4.9550634,2797.2,2796.5,0.3788]
[1749646532617,2.36286798,2797.2,2796.5,0.3788]
[1749646532823,5.93790636,2797.2,2796.5,0.3788]
[1749646532993,0.98286798,2797.2,2796.5,0.3788]
[1749646533238,1.365,2797.3,2796.5,0.3788]
[1749646533383,4.93994156,2797.3,2796.5,0.3788]
[1749646533725,3.57507166,2797.2,2796.5,0.3788]
[1749646534000,3.57507166,2797.2,2796.2,0.55]
[1749646534001,3.57560276,2796.8,2796.2,0.3788]
[1749646534201,4.62,2796.7,2796.2,0.3788]
[1749646534610,4.62,2796.7,2796.1,0.04]
[1749646534774,5.985,2796.7,2796.1,0.04]
[1749646534969,5.6214,2797.0,2796.1,0.04]
[1749646534970,4.62,2796.6,2796.1,0.04]
[1749646535387,4.62,2796.6,2796.2,0.3788]
[1749646535587,4.62,2796.6,2796.2,0.9288]
[1749646535783,1.365,2797.3,2796.4,0.3788]
[1749646536078,0.49603902,2797.2,2796.4,0.3788]
[1749646536678,4.07109041,2797.2,2796.4,0.3788]
[1749646536914,0.49603902,2797.2,2796.4,0.3788]
[1749646538238,1.365,2797.3,2796.5,0.55]
[1749646538419,1.365,2797.3,2796.6,0.3788]
[1749646540237,1.365,2797.4,2796.6,0.3788]
[1749646541422,1.5434,2797.4,2796.9,0.1784]
[1749646541828,1.365,2797.4,2797.0,0.3788]
[1749646542133,4.62,2797.3,2797.2,0.5572]
[1749646543012,4.62,2797.8,2797.3,0.55]
[1749646543210,4.62,2797.8,2797.7,0.1784]
[1749646543429,5.985,2798.5,2797.8,0.3788]
[1749646543734,5.2185,2798.5,2798.2,0.1784]
[1749646544294,0.04,2798.9,2798.3,0.3788]
[1749646544490,0.04,2798.9,2798.4,0.1784]
[1749646544698,0.04,2798.9,2798.3,0.3788]
[1749646544896,0.04,2798.9,2798.5,0.1784]
[1749646545391,0.04,2798.9,2798.7,0.1784]
[1749646546491,0.04,2798.9,2798.3,4.6938]
[1749646546694,0.04,2798.9,2798.5,0.1784]
[1749646546917,1.58634,2798.9,2798.5,0.1784]
[1749646547549,0.04,2798.9,2798.3,0.3788]
[1749646547700,0.04,2798.9,2798.7,0.1784]
[1749646550538,0.04,2798.9,2798.4,0.55]
[1749646550730,0.04,2798.9,2798.8,0.1784]
[1749646553505,0.04,2798.9,2798.6,0.1784]
[1749646554842,0.04,2798.9,2798.3,4.6868]
[1749646554843,0.04,2798.9,2798.3,4.308]
[1749646555047,0.04,2798.9,2798.8,0.1784]
[1749646556453,4.66,2798.9,2798.8,0.5549]
[1749646558311,4.66,2798.9,2798.8,1.1049]
[1749646558514,0.04,2799.9,2798.9,0.55]
[1749646558778,0.04,2799.9,2799.6,0.3765]
[1749646558915,0.04,2799.9,2799.7,4.304]
[1749646560254,0.04,2799.9,2799.6,0.3765]
[1749646560566,0.04,2799.9,2799.4,7.23176676]
[1749646560567,0.04,2799.9,2799.4,4.302]
[1749646561640,0.04,2799.9,2799.4,4.301]
[1749646561830,0.04,2799.9,2799.3,0.3765]
[1749646562033,0.04,2799.9,2799.3,4.6775]
[1749646562432,0.04,2799.9,2799.4,0.00818114]
[1749646562641,0.04,2799.9,2799.4,0.47674925]
[1749646562841,0.04,2799.9,2799.4,0.00818114]
[1749646563027,4.86669585,2799.8,2799.4,0.00818114]
[1749646563228,3.57181244,2799.7,2799.4,0.00818114]
[1749646563451,1.295,2799.8,2799.4,0.00818114]
[1749646564321,1.349,2799.8,2799.4,0.00818114]
[1749646564725,0.04,2799.9,2799.4,0.00818114]
[1749646565219,4.62,2799.8,2799.5,0.3765]
[1749646565421,0.04,2799.9,2799.6,4.848]
[1749646565643,0.04,2799.9,2799.6,0.00818056]
[1749646568128,1.362,2799.8,2799.6,0.00818056]
[1749646568595,1.5404,2799.8,2799.6,0.00818056]
[1749646568791,0.04,2799.9,2799.6,0.00818056]
[1749646568992,0.04,2799.9,2799.6,0.18658056]
[1749646569198,0.04,2799.9,2799.8,0.1784]
[1749646569376,0.04,2799.9,2799.8,1.26920806]
[1749646569890,0.04,2799.9,2799.8,1.27371439]
[1749646570265,0.04,2799.9,2799.8,0.75836234]
[1749646570677,3.61155612,2799.9,2799.8,0.75836234]
[1749646570893,8.23155612,2799.9,2799.8,0.75836234]
[1749646571076,5.9816,2799.9,2799.8,0.75836234]
[1749646571282,9.55315612,2799.9,2799.8,0.75836234]
[1749646571696,10.86561527,2799.9,2799.8,0.75836234]
[1749646571910,7.29405915,2799.9,2799.8,0.75836234]
[1749646572096,7.3306,2799.9,2799.8,0.75836234]
[1749646572407,5.9816,2799.9,2799.8,0.75836234]
[1749646575712,9.55315612,2799.9,2799.8,0.75836234]
[1749646576507,3.57202935,2799.6,2799.0,0.3765]
[1749646576810,4.62,2799.5,2798.6,4.6655]
[1749646577117,8.19210615,2799.5,2798.6,4.6655]
[1749646577309,3.57221824,2799.4,2798.6,4.6655]
[1749646577524,1.2923,2799.4,2798.6,0.3765]
[1749646577721,0.81922182,2799.3,2798.6,0.3765]
[1749646578011,2.6413,2799.4,2798.6,0.3765]
[1749646578215,4.62,2799.3,2798.7,0.55]
[1749646579398,4.60822,2799.3,2798.7,0.55]
[1749646580201,4.60822,2799.3,2799.2,0.1784]
[1749646580941,4.60822,2799.3,2798.6,0.3765]
[1749646581099,4.60822,2799.2,2799.1,0.1784]
[1749646582239,5.203942,2799.2,2798.6,4.6625]
[1749646582444,4.60822,2799.2,2799.0,0.1784]
[1749646583127,4.60822,2799.2,2799.1,0.3784]
[1749646587164,4.60822,2799.2,2799.1,0.9284]
[1749646587849,4.60822,2799.8,2799.2,0.9284]
[1749646588144,4.60822,2799.8,2799.3,4.281]
[1749646588314,4.60822,2799.8,2799.6,0.1784]
[1749646589815,4.60822,2799.8,2799.7,0.1784]
[1749646590019,0.04,2799.9,2799.7,0.1784]
[1749646590229,0.04,2799.9,2799.8,0.3784]
[1749646590650,0.04,2799.9,2799.7,0.1784]
[1749646590854,0.504822,2799.9,2799.7,0.1784]
[1749646591424,1.2851,2799.8,2799.5,0.1784]
[1749646591961,0.04,2799.9,2799.7,0.1784]
[1749646594070,0.04,2799.9,2799.8,0.1784]
[1749646595265,0.04,2799.9,2799.8,0.7284]
[1749646595443,0.04,2799.9,2799.8,18.33856676]
[1749646595638,0.04,2799.9,2799.8,20.17242344]
[1749646596040,0.04,2799.9,2799.8,1.1068]
[1749646596275,0.04,2799.9,2799.8,5.3818]
[1749646598378,0.04,2799.9,2799.8,22.61356676]
[1749646600792,1.4022,2800.9,2799.9,0.3784]
[1749646601010,0.1784,2800.8,2799.9,4.6494]
[1749646601147,1.3271,2800.4,2800.0,0.00736452]
[1749646601496,1.3271,2800.4,2800.0,0.18576452]
[1749646601497,1.5055,2800.4,2800.0,0.18576452]
[1749646601660,2.65605,2800.4,2800.0,0.18576452]
[1749646601984,1.4764,2800.7,2800.2,0.1784]
[1749646602546,1.4764,2800.7,2800.3,0.00736373]
[1749646603211,4.85091844,2800.4,2800.3,0.00736373]
[1749646603508,14.85091844,2800.4,2800.3,0.00736373]
[1749646604546,3.57182853,2799.7,2799.3,0.1784]
[1749646604756,1.2722,2799.6,2799.3,0.1784]
[1749646606563,1.2722,2799.6,2798.8,4.267]
[1749646606761,0.1784,2799.5,2799.0,0.1784]
[1749646608400,1.2722,2799.6,2798.7,0.1784]
[1749646608401,3.57258527,2799.1,2798.7,0.1784]
[1749646608622,0.35725853,2799.0,2798.7,0.1784]
[1749646609133,0.26794092,2799.0,2798.7,0.1784]
[1749646609752,3.57295983,2798.8,2798.7,0.1784]
[1749646609937,4.91539825,2798.3,2798.2,0.67964002]
[1749646610082,5.40693808,2798.3,2798.2,0.67964002]
[1749646610276,22.63870484,2798.3,2798.2,0.67964002]
[1749646610523,15.09902596,2798.2,2797.3,0.1784]
[1749646610879,4.92190357,2797.2,2796.5,0.4257]
[1749646611123,1.5253,2797.2,2796.8,0.1784]
[1749646611806,1.3233,2798.0,2797.1,0.4657]
[1749646612005,0.1784,2797.8,2797.1,0.6441]
[1749646612206,0.1784,2797.8,2797.3,0.1784]
[1749646612605,2.1790736,2798.3,2797.7,0.1784]
[1749646612606,0.1784,2798.3,2797.7,0.1784]
[1749646612918,3.57302585,2798.8,2797.8,0.43]
[1749646613103,0.48587258,2798.7,2797.8,10.43]
[1749646613305,3.57312327,2798.7,2797.8,10.43]
[1749646613620,4.85853783,2798.9,2797.8,0.43]
[1749646613621,3.57327507,2798.6,2797.8,0.43]
[1749646613780,3.57337855,2798.5,2797.8,0.43]
[1749646614119,10.0,2798.6,2797.5,4.693]
[1749646614309,1.35731084,2798.5,2797.5,5.1623]
[1749646615326,1.335,2798.8,2797.5,5.1623]
[1749646615527,4.90802973,2798.8,2797.5,5.1623]
[1749646615691,1.2857,2798.9,2797.6,0.55]
[1749646616035,1.335,2799.1,2797.7,0.43]
[1749646616235,0.62060136,2799.0,2797.9,0.55]
[1749646617833,3.57300007,2798.8,2797.7,0.43]
[1749646617997,3.57313546,2798.7,2797.7,0.43]
[1749646618197,7.85236812,2799.0,2797.7,0.43]
[1749646618606,3.57285558,2798.9,2797.8,0.55]
[1749646618833,11.27612237,2798.9,2797.8,0.55]
[1749646619239,1.336,2798.8,2797.8,0.55]
[1749646619734,4.90900957,2798.8,2797.8,0.55]
[1749646619935,1.336,2798.8,2797.8,0.55]
[1749646622447,1.336,2798.8,2797.9,0.00357154]
[1749646622817,0.1784,2798.8,2798.4,0.43]
[1749646623000,0.1784,2799.0,2798.5,0.1784]
[1749646623201,0.45819,2799.0,2798.5,0.18197078]
[1749646623939,4.03096104,2799.0,2798.5,0.18197078]
[1749646624100,0.45819,2799.0,2798.5,0.18197078]
[1749646624306,0.1784,2798.9,2798.5,0.00357078]
[1749646625643,3.57297919,2798.8,2798.5,0.00357078]
[1749646625844,3.75129213,2798.9,2798.5,0.00357078]
[1749646626151,0.93876983,2798.9,2798.5,0.00357078]
[1749646626335,0.1784,2798.9,2798.5,0.00357078]
[1749646627152,10.0,2799.5,2798.8,0.1784]
[1749646627310,10.0,2799.5,2798.7,0.1784]
[1749646627311,3.75091297,2799.2,2798.7,0.1784]
[1749646627509,3.57265123,2799.1,2798.7,0.1784]
[1749646627705,3.94786898,2799.0,2798.8,0.00487746]
[1749646627909,3.57264655,2799.1,2798.8,0.00487746]
[1749646628318,3.57269833,2799.1,2798.8,0.00487746]
[1749646628551,0.1784,2798.9,2798.8,0.00487746]
[1749646628723,3.75123218,2798.9,2798.8,0.00487746]
[1749646629333,13.75123218,2798.9,2798.8,0.00487746]
[1749646629504,22.37309894,2798.9,2798.8,0.00487746]
[1749646631426,22.92309894,2798.9,2798.8,0.00487746]
[1749646631625,25.57269175,2798.9,2798.8,0.00487746]
[1749646632052,17.79092499,2798.9,2798.8,0.00487746]
[1749646634855,4.21809281,2798.9,2798.8,0.00487746]
[1749646635027,6.46233218,2798.9,2798.8,0.00487746]
[1749646635853,13.69409894,2798.9,2798.8,0.00487746]
[1749646636149,23.69409894,2798.9,2798.8,0.00487746]
[1749646636559,24.24409894,2798.9,2798.8,0.00487746]
[1749646636852,4.91021172,2798.2,2797.6,0.1784]
[1749646637080,0.1784,2798.0,2797.6,0.1784]
[1749646637232,4.89436131,2798.5,2797.6,0.1784]
[1749646637438,0.1784,2798.2,2797.6,0.1784]
[1749646638868,3.57349653,2798.4,2797.4,0.43]
[1749646639162,0.1784,2797.9,2797.4,0.6084]
[1749646640229,0.1784,2797.7,2797.4,0.43]
[1749646640855,0.1784,2797.7,2797.2,0.1784]
[1749646641056,3.75277115,2797.7,2797.2,0.1784]
[1749646641246,0.37527712,2797.6,2797.2,0.1784]
[1749646641753,0.1784,2797.7,2797.2,0.1784]
[1749646641956,3.57423906,2797.8,2797.1,0.04]
[1749646641957,10.0,2797.8,2797.1,0.04]
[1749646642143,0.1784,2797.3,2797.1,0.04]
[1749646642458,0.5537084,2797.3,2797.1,0.04]
[1749646642659,0.1784,2797.3,2797.1,0.04]
[1749646643360,4.89666924,2797.5,2797.1,0.04]
[1749646643658,0.1784,2797.2,2797.1,0.04]
[1749646643860,1.2896,2797.7,2797.1,0.4745]
[1749646644046,1.322,2798.0,2797.2,0.1784]
[1749646644230,0.1784,2797.7,2797.2,0.1784]
[1749646645226,3.75283835,2797.7,2797.2,0.1784]
[1749646645423,3.57438451,2797.7,2797.1,0.4745]
[1749646645733,0.1784,2797.5,2797.1,0.4745]
[1749646646623,0.1784,2797.5,2797.1,0.04]
[1749646646824,4.12848994,2797.4,2797.1,0.04]
[1749646647020,0.55369628,2797.4,2797.1,0.04]
[1749646647352,4.89514865,2797.8,2797.1,0.04]
[1749646647556,3.57440815,2797.7,2797.1,0.04]
[1749646647731,3.57440815,2797.7,2795.7,3.53748376]
[1749646647732,1.3209,2797.1,2795.7,3.53748376]
[1749646647927,9.19561625,2796.5,2795.4,0.4345]
[1749646648130,1.322,2796.4,2795.4,0.4345]
[1749646648369,1.3209,2797.0,2795.5,0.4345]
[1749646648568,0.55,2797.3,2795.8,10.4345]
[1749646648569,11.268,2797.3,2795.8,10.4345]
[1749646648742,1.322,2797.2,2795.9,0.4345]
[1749646648942,1.322,2797.4,2796.3,0.55]
[1749646649158,3.57521361,2797.1,2796.2,0.4345]
[1749646649342,9.19561625,2797.2,2796.2,0.4345]
[1749646649762,3.57516597,2797.1,2796.2,0.4345]
[1749646650134,9.19561625,2797.2,2796.2,0.4345]
[1749646650335,0.91956163,2797.1,2796.2,0.4345]
[1749646650573,1.75753082,2797.6,2796.2,0.4345]
[1749646650574,1.75753082,2797.6,2796.3,10.55]
[1749646650874,1.4348,2797.9,2796.7,0.55]
[1749646651048,0.29680895,2797.8,2797.0,0.4345]
[1749646651431,0.29680895,2797.8,2797.2,0.4345]
[1749646652484,0.04,2797.9,2797.2,0.4345]
[1749646654638,0.04,2797.9,2797.0,0.55]
[1749646654851,0.04,2797.9,2797.3,0.4345]
[1749646655357,0.04,2798.9,2797.8,0.55]
[1749646655566,0.29680895,2798.8,2798.2,0.55]
[1749646655763,0.29680895,2798.8,2798.4,0.55]
[1749646656447,0.29680895,2798.8,2798.5,0.4345]
[1749646657075,0.04,2798.9,2798.5,0.4345]
[1749646657394,0.04,2798.9,2798.7,0.1784]
[1749646657890,0.04,2798.9,2798.8,0.4345]
[1749646659244,0.04,2798.9,2798.8,2.04579]
[1749646659959,0.04,2798.9,2798.8,14.6705]
[1749646660368,0.04,2798.9,2798.8,10.54606303]
[1749646660569,0.04,2798.9,2798.8,10.4345]
[1749646660749,0.04,2798.9,2798.8,14.78206319]
[1749646660949,0.04,2798.9,2798.8,14.78206392]
[1749646661187,0.04,2798.9,2798.8,14.6705]
[1749646661513,0.04,2798.9,2798.8,16.71654639]
[1749646661911,0.04,2798.9,2798.8,16.82809828]
[1749646662203,0.04,2798.9,2798.8,16.82809684]
[1749646662421,0.04,2798.9,2798.8,16.71654639]
[1749646662704,0.04,2798.9,2798.8,12.48054639]
[1749646663009,0.04,2798.9,2798.8,16.71554639]
[1749646664406,0.04,2798.9,2798.8,16.71454639]
[1749646666330,0.04,2798.9,2798.8,16.71354639]
[1749646666698,0.04,2798.9,2798.8,10.4345]
[1749646667002,0.04,2798.9,2798.8,4.6675]
[1749646667204,0.04,2798.9,2798.7,0.1784]
[1749646667614,0.04,2798.9,2798.8,4.233]
[1749646668593,0.04,2798.9,2798.8,15.2175]
[1749646668802,0.04,2798.9,2798.8,16.75709]
[1749646673800,0.04,2798.9,2798.8,12.52409]
[1749646674094,0.04,2798.9,2798.8,16.75309]
[1749646674242,0.04,2798.9,2798.8,12.52409]
[1749646674449,0.04,2798.9,2798.8,16.75309]
[1749646674900,0.04,2798.9,2798.8,11.97409]
[1749646675043,0.04,2798.9,2797.8,0.437]
[1749646675784,0.04,2798.9,2798.0,10.0]
[1749646677179,0.04,2798.9,2798.2,0.437]
[1749646677489,0.04,2798.9,2798.4,10.0]
[1749646677886,4.7,2798.8,2798.4,10.0]
[1749646678543,5.174,2798.8,2798.5,4.228]
[1749646680280,5.174,2798.8,2797.9,0.987]
[1749646680583,9.18812987,2798.4,2797.2,0.437]
[1749646680759,9.18812987,2798.4,2797.3,4.227]
[1749646680960,10.24629286,2798.4,2797.4,10.4664]
[1749646681155,10.24629286,2798.4,2797.4,0.4664]
[1749646681584,10.24629286,2798.4,2797.5,4.227]
[1749646681789,10.24629286,2798.4,2797.6,10.0]
[1749646682094,10.24629286,2798.4,2797.5,4.227]
[1749646682392,10.24629286,2798.4,2797.6,10.00429229]
[1749646682887,4.7,2798.7,2797.7,0.987]
[1749646683185,5.174,2798.8,2797.7,0.987]
[1749646683397,5.174,2798.8,2797.8,0.00429199]
[1749646683594,5.174,2798.8,2798.0,10.0]
[1749646684171,0.04,2798.9,2798.1,0.55429153]
[1749646684597,0.04,2798.9,2798.3,10.0]
[1749646684784,9.18812987,2798.8,2798.1,0.00429153]
[1749646684995,9.18812987,2798.8,2797.8,0.55]
[1749646684996,9.18812987,2798.8,2798.4,4.4044]
[1749646685196,9.18812987,2798.8,2798.5,4.226]
[1749646685399,0.04,2798.9,2798.5,4.226]
[1749646685799,0.04,2798.9,2798.6,0.00429076]
[1749646686385,0.04,2798.9,2798.7,4.225]
[1749646687213,0.04,2798.9,2798.8,4.22929045]
[1749646687843,0.04,2798.9,2798.8,0.00429045]
[1749646688132,0.04,2798.9,2798.8,4.22929045]
[1749646688133,1.09226299,2798.9,2798.8,4.22929045]
[1749646688691,0.04,2798.9,2798.8,4.22929045]
[1749646689111,0.04,2798.9,2798.8,4.22829045]
[1749646689692,4.74,2798.9,2798.8,4.22829045]
[1749646691807,4.74,2798.9,2798.8,0.00429045]
[1749646692031,4.74,2798.9,2798.8,4.22729045]
[1749646692396,0.04,2798.9,2798.8,4.22729045]
[1749646692907,1.4353,2798.9,2798.8,0.00429045]
[1749646693101,1.4353,2798.9,2798.8,4.22629045]
[1749646694539,0.04,2798.9,2798.8,4.22629045]
[1749646695608,4.74,2798.9,2798.8,4.22629045]
[1749646695911,4.74,2798.9,2798.8,0.00429045]
[1749646696132,4.74,2798.9,2798.8,4.22529045]
[1749646696455,5.214,2798.9,2798.8,0.00429045]
[1749646696669,20.14543218,2798.9,2798.8,0.00429045]
[1749646699808,16.5726,2798.9,2798.8,0.00429045]
[1749646700776,6.5726,2798.9,2798.8,0.00429045]
[1749646701083,10.14543218,2798.9,2798.8,0.00429045]
[1749646701620,4.69570955,2798.5,2798.0,0.1784]
[1749646701860,9.18812987,2798.4,2798.0,0.1784]
[1749646702366,9.18812987,2798.1,2798.0,0.1784]
[1749646702520,1.3452,2797.9,2797.4,0.1784]
[1749646702718,4.69570955,2797.8,2797.4,0.1784]
[1749646702917,9.98846083,2797.7,2797.2,0.1784]
[1749646703535,13.56283145,2797.7,2797.2,0.1784]
[1749646703729,9.98846083,2797.7,2797.2,0.1784]
[1749646704536,1.3457,2797.3,2797.1,0.05]
[1749646704741,1.3457,2797.3,2797.1,0.2284]
[1749646704742,4.69570955,2797.2,2797.1,0.2284]
[1749646705827,4.69570955,2797.2,2797.1,0.05]
[1749646708866,4.69570955,2797.2,2797.1,0.2284]
[1749646711945,1.93442861,2797.5,2797.2,0.55]
[1749646712146,1.93442861,2797.5,2797.4,0.55]
[1749646712469,11.12255848,2798.2,2797.4,0.1784]
[1749646712642,1.3559,2798.0,2797.3,0.4373]
[1749646712850,1.3559,2798.0,2797.6,0.1784]
[1749646713033,1.3559,2798.0,2797.1,0.05]
[1749646713235,0.1784,2797.9,2797.4,4.3934]
[1749646715034,1.3559,2798.0,2797.4,4.65434]
[1749646715234,1.93442861,2798.1,2797.8,0.1784]
[1749646715440,1.93442861,2798.5,2797.9,0.1784]
[1749646715767,1.93442861,2798.5,2798.4,0.1784]
[1749646715972,1.93442861,2798.5,2798.2,4.3924]
[1749646716158,1.93442861,2798.5,2798.2,4.65324]
[1749646716339,1.93442861,2798.5,2798.4,0.1784]
[1749646717971,1.93442861,2798.5,2798.0,4.6503]
[1749646718174,1.93442861,2798.5,2798.2,0.1784]
[1749646718784,1.93442861,2798.5,2798.0,4.6503]
[1749646718970,1.93442861,2798.5,2798.4,0.1784]
[1749646720572,1.93442861,2798.5,2798.3,4.211]
[1749646720870,1.93442861,2798.5,2798.3,4.3894]
[1749646722176,1.93442861,2798.5,2798.4,0.1784]
[1749646722759,1.93442861,2798.5,2798.3,4.21]
[1749646722964,1.93442861,2798.5,2798.4,0.1784]
[1749646725993,1.93442861,2798.5,2798.4,0.61724]
[1749646726908,1.93442861,2798.5,2798.4,11.60454]
[1749646727504,0.04,2798.9,2798.7,0.55]
[1749646727806,0.04,2798.9,2798.8,1.1657]
[1749646729287,1.93442861,2799.7,2799.1,0.55]
[1749646729474,1.93442861,2799.7,2799.3,10.55]
[1749646729680,1.93442861,2799.7,2799.6,0.1784]
[1749646729994,0.04,2799.9,2799.6,0.6157]
[1749646730496,0.04,2799.9,2799.8,0.7284]
[1749646730700,0.04,2799.9,2799.8,14.9334]
[1749646730900,0.04,2799.9,2799.8,24.55882987]
[1749646731102,0.04,2799.9,2799.8,25.97155313]
[1749646731302,0.04,2800.9,2800.1,0.55]
[1749646731502,0.04,2800.9,2800.3,0.55]
[1749646731710,0.04,2800.9,2800.8,0.1784]
[1749646731999,0.04,2800.9,2800.8,1.1657]
[1749646732498,0.04,2800.9,2800.8,15.3697]
[1749646732700,0.04,2800.9,2800.8,15.80854]
[1749646733900,0.04,2800.9,2800.8,4.3804]
[1749646734309,0.04,2800.9,2800.8,14.9304]
[1749646735705,0.04,2800.9,2800.8,15.3712]
[1749646735890,0.04,2800.9,2800.8,15.3702]
[1749646736871,0.04,2800.9,2800.8,15.3682]
[1749646737204,0.04,2800.9,2800.8,16.90502]
[1749646739092,0.04,2800.9,2800.8,12.70602]
[1749646739432,0.04,2800.9,2800.8,16.90402]
[1749646741079,0.04,2800.9,2800.8,26.09214987]
[1749646741277,0.04,2800.9,2800.8,12.70602]
[1749646741524,0.04,2800.9,2800.8,4.196]
[1749646742077,0.04,2800.9,2800.8,4.746]
[1749646742683,0.04,2800.9,2800.8,15.1868]
[1749646744706,0.04,2800.9,2800.8,15.1848]
[1749646745726,0.04,2800.9,2800.8,10.0]
[1749646745925,0.04,2800.9,2800.8,4.193]
[1749646746421,9.22812987,2800.9,2799.7,0.4408]
[1749646746623,0.04,2800.9,2799.8,4.193]
[1749646746799,0.04,2800.9,2799.9,0.46338]
[1749646747123,0.04,2800.9,2800.1,10.0]
[1749646747298,0.04,2800.9,2799.9,0.46338]
[1749646747493,0.04,2800.9,2800.3,10.0]
[1749646748834,1.3015,2800.8,2799.7,0.4408]
[1749646749135,1.3015,2800.8,2800.0,0.55]
[1749646749504,1.3015,2800.8,2799.7,0.4408]
[1749646749706,1.3015,2800.8,2799.9,10.0]
[1749646750041,1.3882,2800.5,2800.0,5.6101]
[1749646750205,1.3882,2800.5,2800.1,10.0]
[1749646750632,1.3882,2800.5,2799.4,0.4408]
[1749646750633,1.3882,2800.5,2800.2,4.191]
[1749646751527,1.3882,2800.5,2800.4,0.1784]
[1749646752232,1.3051,2800.8,2800.4,0.61534]
[1749646752403,1.3051,2800.8,2800.4,0.43694]
[1749646752618,0.04,2800.9,2800.7,0.1784]
[1749646752826,0.04,2800.9,2800.8,4.19]
[1749646754720,0.04,2800.9,2800.8,15.17684]
[1749646756261,0.04,2800.9,2800.8,15.52560876]
[1749646756409,0.04,2800.9,2800.8,15.96640876]
[1749646756615,0.04,2800.9,2800.8,15.61464]
[1749646759864,0.04,2800.9,2800.8,11.79246132]
[1749646760029,0.04,2800.9,2800.7,0.1784]
[1749646760237,0.04,2800.9,2800.8,4.185]
[1749646761427,0.04,2800.9,2800.8,4.184]
[1749646762772,0.04,2800.9,2800.8,14.184]
[1749646763665,0.04,2800.9,2800.8,10.0]
[1749646763841,9.22812987,2800.9,2800.8,4.183]
[1749646764161,11.16255848,2800.9,2800.8,4.183]
[1749646764730,1.97442861,2800.9,2800.8,4.182]
[1749646766060,1.97442861,2800.9,2800.7,0.1784]
[1749646766279,12.70439255,2800.8,2799.9,0.4405]
[1749646766460,3.28522861,2800.8,2800.4,0.1784]
[1749646766646,3.28522861,2800.8,2800.7,0.1784]
[1749646767552,1.93442861,2800.8,2800.7,0.1784]
[1749646769584,0.04,2800.9,2800.7,10.1784]
[1749646769885,0.04,2800.9,2800.8,0.43594]
[1749646770086,0.04,2800.9,2800.8,0.98594]
[1749646770290,0.04,2800.9,2800.8,1.16434]
[1749646770785,0.04,2800.9,2800.8,0.61434]